Cogmind - Beta 10.2 @@@ ROGUE MODE // 2021.04.02 @ 01:39:25 Player: gammafunk Result: Destroyed by as-70988 with Assembled Maul Performance ------------- Evolutions (0) 0 Regions Visited (2) 400 Robots Destroyed (17) 85 Value Destroyed (529) 529 Prototype IDs (3) 60 Alien Tech Used (0) 0 Bonus (0) 0 TOTAL SCORE: 1074 Bonus ------- None Cogmind --------- Core Integrity 0/250 Matter 300/300 Energy 75/100 System Corruption 5% Temperature Cool (0) Movement Walking (120) Location -10/Mines Parts ------- > --- POWER (1) -------- (None) > --- PROPULSION (2) --- Aluminum Leg Aluminum Leg > --- UTILITY (2) ------ Large Storage Unit > --- WEAPON (2) ------- Welding Torch > --- INVENTORY (10) --- Light Ion Engine Light Nuclear Core Light Treads Aluminum Leg Aluminum Leg Heat Sink Large Storage Unit High-capacity Matter Pod (200) Welding Torch Peak State ------------ > --- POWER ------------ Light Ion Engine > --- PROPULSION ------- Light Treads Light Treads > --- UTILITY ---------- Improved Heat Sink Large Storage Unit > --- WEAPON ----------- Particle Gun Assault Rifle > --- INVENTORY -------- Light Nuclear Core Aluminum Leg Aluminum Leg Aluminum Leg Heat Sink Large Storage Unit High-capacity Matter Pod EM Pulse Gun Small Laser Grenade Launcher [Rating: 11] Favorites ----------- Power Ion Engine Engine Ion Engine Propulsion Light Treads Treads Light Treads Leg Aluminum Leg Utility Large Storage Unit Device Improved Heat Sink Storage Large Storage Unit Protection Light Armor Plating Weapon Light Assault Rifle Energy Gun Small Laser Ballistic Gun Light Assault Rifle Launcher Grenade Launcher Special Weapon Mining Laser Build | -11 -10 -10 ------- Run | Scr Mat Min Slots Evolved . | . . . Power . | . . . Propulsion . | . . . Utility . | . . . Weapon . | . . . Parts Attached 32 | 8 8 16 Power 3 | 2 . 1 Engine 3 | 2 . 1 Core . | . . . Reactor . | . . . Propulsion 9 | 2 2 5 Treads 6 | 2 2 2 Leg 3 | . . 3 Wheel . | . . . Hover . | . . . Flight . | . . . Utility 7 | 2 4 1 Device 1 | . . 1 Storage 4 | 2 2 . Processor . | . . . Hackware . | . . . Protection 2 | . 2 . Artifact . | . . . Weapon 13 | 2 2 9 Energy Gun 4 | . . 4 Energy Cannon . | . . . Ballistic Gun 4 | 2 1 1 Ballistic Cannon . | . . . Launcher 2 | . 1 1 Special Weapon 3 | . . 3 Impact Weapon . | . . . Slashing Weapon . | . . . Piercing Weapon . | . . . Special Melee Weapon . | . . . Unidentified Prototypes . | . . . Parts Lost 15 | . . 15 Power 2 | . . 2 Propulsion 3 | . . 3 Utility 2 | . . 2 Weapon 8 | . . 8 Highest Loss Streak 4 | . . 4 Average Slot Usage (%) 88 | . 98 77 Engine 13 | . 14 13 Treads 23 | . 27 19 Leg 3 | . . 7 Storage 14 | . 14 14 Protection 7 | . 12 1 Energy Gun 3 | . . 8 Ballistic Gun 16 | . 27 3 Special Weapon 3 | . . 7 Naked Turns . | . . . Heaviest Build 28 | 16 28 28 Greatest Support 40 | 40 40 40 Greatest Overweight (x) 2 | . . 2 Average Overweight (x) . | . . . Largest Inventory Capacity 10 | 8 10 10 Average Capacity 8 | 5 7 10 Most Carried 10 | 2 8 10 Average Carried 7 | 1 6 8 Final Capacity 10 | 8 10 10 Final Carried 9 | 2 8 9 Class Distribution -------------------- 90% | Mutant 9% | Scavenger-Mutant Dominant Class ---------------- Mutant | -10/Materials Mutant | -10/Mines Resources | -11 -10 -10 ----------- Run | Scr Mat Min Matter Collected 893 | 304 309 280 Remotely . | . . . Salvage Created 751 | 88 408 255 Parts 39 | 3 26 10 Haulers Intercepted 1 | . 1 . Recyclers Shooed 1 | . 1 . Parts Field Recycled . | . . . Retrieved Matter . | . . . Parts Self-Destructed . | . . . Prevented . | . . . Kills | -11 -10 -10 ------- Run | Scr Mat Min Combat Hostiles Destroyed 18 | . 6 12 Guns 15 | . 6 9 Cannons 1 | . . 1 AOE 2 | . . 2 Classes Destroyed 7 | 1 4 2 Worker 1 | . 1 . Hauler 1 | . 1 . Recycler 2 | 1 1 . Watcher 1 | . 1 . Grunt 10 | . 6 4 Demolisher 2 | . . 2 Assembled 6 | . . 6 Best Kill Streak 4 | 1 4 4 Combat Bots Only 4 | . 4 4 Max Kills in Single Turn 1 | 1 1 1 Gunslinging . | . . . Exploded 1 | . . 1 Melee . | . . . Uniques/NPCs Destroyed . | . . . Combat | -11 -10 -10 -------- Run | Scr Mat Min Damage Taken 1686 | . 156 1530 Core 261 | . . 261 Absorbed by Shields . | . . . Core Remaining (%) 100 | 100 . . Volleys Fired 90 | 6 35 49 Largest 2 | 2 2 2 Hottest 100 | 40 40 100 Shots Fired 148 | 12 70 66 Gun 138 | 12 70 56 Cannon . | . . . Launcher 3 | . . 3 Special 7 | . . 7 Kinetic 106 | 12 70 24 Thermal 29 | . . 29 Explosive 3 | . . 3 Electromagnetic 10 | . . 10 Robot Hit Streak 15 | 3 15 14 Robot Miss Streak 4 | 2 4 4 Penetration Max . | . . . Secondary Targets 4 | . . 4 Max Gunslinging Chain 1 | . . 1 Shots Hit Robots 96 | 7 43 46 Core Hits 47 | 2 20 25 Critical Hits 1 | . 1 . Critical Kills . | . . . Critical Parts Destroyed 1 | . 1 . Melee Attacks . | . . . Impact . | . . . Slashing . | . . . Piercing . | . . . Sneak Attacks . | . . . Combat Hostiles . | . . . Follow-up Attacks . | . . . Damage Inflicted 1191 | 86 438 667 Guns 968 | 86 412 470 Cannons . | . . . Explosions 124 | . . 124 Melee . | . . . Ramming 27 | . 26 1 Kinetic 723 | 86 412 225 Thermal 228 | . . 228 Explosive 124 | . . 124 Electromagnetic 89 | . . 89 Impact . | . . . Slashing . | . . . Piercing . | . . . Highest Corruption 5 | . . 5 Average Corruption 5 | . . 5 Corruption Purged . | . . . Effects 1 | . . 1 Targeting Errors 1 | . . 1 Overload Shots . | . . . Overflow Damage 12 | . . 12 Projectiles . | . . . Explosions 12 | . . 12 Melee . | . . . Knockbacks . | . . . Impact . | . . . Kinetic . | . . . Secondary . | . . . Self-Inflicted Damage 7 | . . 7 Shots 1 | . . 1 Rammed 9 | . 8 1 Targets Rammed 10 | . 9 1 Kicked . | . . . Crushed 1 | . 1 . Highest Temperature 104 | . 21 104 Average Temperature 23 | . 6 41 Received Heat Transfer 399 | . 87 312 Siege Activations . | . . . Robots Corrupted . | . . . Combat Hostiles . | . . . Parts Fried . | . . . Impact Corruptions . | . . . Robots Melted . | . . . Combat Hostiles . | . . . Parts Melted . | . . . Heat Transferred 512 | . . 512 Parts Sabotaged . | . . . Parts Stolen . | . . . Parts Stripped . | . . . Power Chain Reactions . | . . . Missiles Intercepted . | . . . Alert | -11 -10 -10 ------- Run | Scr Mat Min Peak Influence 207 | 5 207 152 Initial 22 | . 3 22 Average 72 | 1 98 52 Maximum Alert Level 1 | . 1 . Low Security (%) 93 | 100 86 100 Level 1 6 | . 13 . Level 2 . | . . . Level 3 . | . . . Level 4 . | . . . Level 5 . | . . . High Security . | . . . Max Security . | . . . Squads Dispatched 2 | . 2 . Investigation . | . . . Extermination . | . . . Reinforcement 2 | . 2 . Assault . | . . . Garrison . | . . . Intercept . | . . . Construction Impeded . | . . . Haulers Reinforced . | . . . Stealth | -11 -10 -10 --------- Run | Scr Mat Min Distress Signals 1 | . . 1 Communications Jammed . | . . . Distress Signals . | . . . Times Spotted 38 | . 13 25 Peak Tracking Total 6 | . 5 6 Tactical Retreats 3 | . . 3 Traps | -11 -10 -10 ------- Run | Scr Mat Min Traps Triggered . | . . . Indirectly . | . . . Trap Hack Attempts . | . . . Triggered . | . . . Disarmed . | . . . Reprogrammed . | . . . Reused . | . . . Traps Extracted . | . . . Installed . | . . . Triggered . | . . . Machines | -11 -10 -10 ---------- Run | Scr Mat Min Machines Disabled . | . . . Max in Single Turn . | . . . Machines Sabotaged . | . . . Garrisons Compromised . | . . . Overloaded Fab Kills . | . . . Fab Network Shutdowns . | . . . Hacking | -11 -10 -10 --------- Run | Scr Mat Min Machines Accessed 6 | . 6 . Terminals 5 | . 5 . Fabricators . | . . . Repair Stations 1 | . 1 . Recycling Units . | . . . Scanalyzers . | . . . Garrison Access . | . . . Total Hacks 25 | . 25 . Successful 18 | . 18 . Failed 6 | . 6 . Catastrophic 1 | . 1 . Database Lockouts 1 | . 1 . Manual 13 | . 13 . Terminals 16 | . 16 . Fabricators . | . . . Repair Stations 9 | . 9 . Recycling Units . | . . . Scanalyzers . | . . . Garrison Access . | . . . Terminal Hacks 6 | . 6 . Part Schematic 1 | . 1 . Robot Analysis 3 | . 3 . Prototype ID Bank 1 | . 1 . Terminal Index 1 | . 1 . Fabricator Hacks . | . . . Repair Station Hacks 8 | . 8 . Scan Component 4 | . 4 . Repair 4 | . 4 . Recycling Unit Hacks . | . . . Scanalyzer . | . . . Garrison Access Hacks . | . . . Unauthorized Hacks 4 | . 4 . Terminals 4 | . 4 . Botnet 4 | . 4 . Fabricators . | . . . Repair Stations . | . . . Recycling Units . | . . . Scanalyzers . | . . . Garrison Access . | . . . Data Cores Recovered . | . . . Used . | . . . Hacking Detections 5 | . 5 . Full Trace Events . | . . . Feedback Events . | . . . Feedback Blocked . | . . . Robot Schematics Acquired . | . . . Robots Built . | . . . Matter . | . . . Time . | . . . Total Robot Build Rating . | . . . Part Schematics Acquired 1 | . 1 . Parts Built . | . . . Matter . | . . . Time . | . . . Total Part Build Rating . | . . . Parts Repaired 4 | . 4 . Time 104 | . 104 . Parts Recycled . | . . . Recycled Matter . | . . . Retrieved Matter . | . . . Retrieved Components . | . . . Parts Scanalyzed . | . . . Part Schematics Acquired . | . . . Parts Damaged . | . . . Bothacking | -11 -10 -10 ------------ Run | Scr Mat Min Used RIF Installer . | . . . Robots Hacked . | . . . Non-combat . | . . . Combat . | . . . Robot Hacks Applied . | . . . Relay Couplers Released . | . . . Robots Rewired . | . . . Allies Hacked . | . . . Hacks Repelled . | . . . Allies | -11 -10 -10 -------- Run | Scr Mat Min Total Allies 2 | . . 2 Largest Group 2 | . . 2 Highest-Rated Group 42 | . . 42 Highest-Rated Ally 31 | . . 31 Total Orders . | . . . Ally Attacks 14 | . . 14 Total Damage 211 | . . 211 Kills 2 | . . 2 Allies Corrupted . | . . . Allies Melted . | . . . Intel | -11 -10 -10 ------- Run | Scr Mat Min Robot Analysis Total 3 | . 3 . Derelict Logs Recovered . | . . . Drone Launches . | . . . Drone Recoveries . | . . . Exploration | -11 -10 -10 ------------- Run | Scr Mat Min Turns Passed 1844 | 111 926 807 Spaces Moved 845 | 54 421 370 Core 4 | 4 . . Treads 679 | 50 421 208 Legs 162 | . . 162 Wheels . | . . . Hover . | . . . Flight . | . . . Fastest Speed 50 | 50 160 150 Average Speed 158 | 151 160 157 Slowest Speed 180 | 160 160 180 Overloaded Moves . | . . . Propulsion Burnouts . | . . . Robots Hopped . | . . . Cave-ins Triggered . | . . . Exploration Rate (%) 40 | 5 69 46 Regions Visited 2 Branch Regions 1 Pre-discovered Areas . | . . . Known Exits Taken . | . . . Unknown Exits Taken 2 | 1 1 . Scrap Searched . | . . . Spaces Dug . | . . . Terrain Destroyed 17 | . . 17 Melee . | . . . Projectile 1 | . . 1 AOE 16 | . . 16 Terrain Rammed . | . . . Walls Destroyed . | . . . Machines Disabled . | . . . Actions | -11 -10 -10 --------- Run | Scr Mat Min Total 1188 | 68 604 516 Wait 190 | . 122 68 Move 843 | 53 420 370 Hop . | . . . Pick Up 17 | 1 6 10 Fast Attach 15 | 7 5 3 Attach 10 | . . 10 Detach 2 | . 1 1 Swap 7 | 1 3 3 Drop 4 | . 3 1 Fire 90 | 6 35 49 Melee . | . . . Ram . | . . . Kick . | . . . Crush 10 | . 9 1 Escape Stasis . | . . . Rewire . | . . . Trap . | . . . Miscellaneous . | . . . Route ------- -11/Scrapyard -10/Materials (discovered 4 exits: [*Mat x3] / [*Min]) -10/Mines (discovered 2 exits: [*Mat x2]) History --------- Turn | Location | Event 13 | -11/Scrapyard | Discovered new exit (range 15) 112 | -11/Scrapyard | Entered Materials 315 | -10/Materials | Build established: Mutant 367 | -10/Materials | Discovered new exit (range 8) 712 | -10/Materials | Discovered new exit (range 3) 724 | -10/Materials | Central database locked down 881 | -10/Materials | Repaired Lgt. Armor Plating 908 | -10/Materials | Repaired Assault Rifle 936 | -10/Materials | Repaired Lgt. Treads 963 | -10/Materials | Repaired Lgt. Treads 1002 | -10/Materials | Discovered new exit (range 11) 1008 | -10/Materials | Discovered new exit (range 5) 1038 | -10/Materials | Entered Mines 1081 | -10/Mines | Assembled infested the area 1086 | -10/Mines | Assisted by a Guerilla fighting off Assembled 1086 | -10/Mines | Discovered new exit (range 12) 1179 | -10/Mines | Lost 4 parts (1p2n1w) 1251 | -10/Mines | Lost 3 parts (1u2w) 1319 | -10/Mines | Core integrity fell below 50% 1641 | -10/Mines | Discovered new exit (range 12) 1838 | -10/Mines | Core integrity fell below 20% 1845 | -10/Mines | Destroyed by as-70988 with Assembled Maul Last Messages --------------- Sml. Laser destroyed. as-57723 destroyed. Acquired 10 matter. A pair of derelicts emerge from the shadows: "We're, um, lost. You wouldn't happen to know the way out of here, would you?" Acquired Welding Torch. as-08934 destroyed. EXIT=FOUND Acquired Welding Torch. Acquired 10 matter. Acquired Lgt. Ion Engine. as-09285 destroyed. OT-VD7(g) destroyed. Welding Torch destroyed. Mining Laser destroyed. Extracted 10 matter. Lgt. Ion Engine destroyed. System corrupted by crushing effect (+5). System corrupted: Welding Torch targeting data glitched. Map ----- +----------------------------------------------------+ | ????????????????????????????????????????? | | ????????????????????????????????????????? | | ????????????????????????????????????????? | | ????????????????????????????????????????? | | ????????????????????????????????????????? | | ????????????????????????????????????????? | | ????????????????????????????????????????? | | ????????????####????????????????????????? | | ???????????## #???????????????????????? | | ??????????## ????????????####???????? | | ??????????# ???????????## ##??????? | | ??????????# ##?###?????# ##?????? | | ???????????# ## ##?#### ####??? | | ????????????# =#?# #??? | | ?????????????# """%#?# ### !%%#??? | | ??????????????# """!### #?## %<=#??? | | ???????????????# !""" ## ##### =##??? | | ???????????????# %%% ## ###%=##???? | | ???????????????# = ###### #?##=#????? | | ???????????????# ###????# #??#%#????? | | ??????????????## ##??????#*#??#!#????? | | ?????????????## #?????###!####*#????? | | ????????????## #######*!%* %% #????? | | ????????????# !=!%!%*=%!%!% % #????? | | ????????????# !%=*aa*=%=### ##????? | | ????????????## #######@%* #?# #?????? | | ?????????????## ##?????#!! ## ##????? | | #### ###### ########= ##???? | | [=%%%! =%= % % ##??? | | ########## !* ## #??? | | ???????????############### #### ! #??? | | ???????????# #???####??#!%* ##??? | | ???????##??# #????????## =###???? | | ######?# ??# """ #???????## ##?????? | | # ####"### < """ #??????## "#?????? | | ## ## """ #?????## * ##?????? | | # #????## %= #?????? | | # # # # """ """ #???## #?????? | | # ## # """ """ #???# #?????? | | ### # """ """ #???# #?????? | | ## * # #???# ##?????? | | *%= ! # #???## !%####??????? | | = # # #########????## #?????????? | | #### *## #???????????# !#?????????? | | # # !%%=#| #???????????#*%#?????????? | | # # ###%%%!# #???????????# #?????????? | | ##== ===!%#####?????????# ###???????? | | # =%* !%=% #?????????# #???????? | | #### = * % ! #?????????# #???????? | | !=%= !%= * =%##????????### #???????? | +----------------------------------------------------+ Best States ------------- Heat Dissipation 39 Energy Generation 10 Energy Capacity 250 Matter Stores 300 Matter Capacity 300 Sight Range 16 Terrain Scan Density 10 Armor Coverage 150 Evasion (%) 40 Recoil Reduction 2 Item Schematics ----------------- Hcp. Storage Unit | -10/Materials | Hacked Robot Schematics ------------------ None Fabricated ------------ Nothing Alien Tech Used ----------------- None Achievements -------------- None Challenges ------------ None Game ------ Seed MetafieldRefineryThrower Manual? 0 Play Time 00:16:35 Cumulative 105.5 hours Start 2021.04.02 @ 01:24:36 End 2021.04.02 @ 01:39:25 Sessions 1 Manual Loads 0 Difficulty Rogue Special Mode None Game No. 51 Rogue 51 Adventurer 0 Explorer 0 Win Type - Total 1 Types 0/0/1/0/0/0/0/0/0 Lore% 50 Gallery% 50 Achievement% 51 Wizard Run 0 Options --------- ASCII 0 Keyboard 1 Movement Vi Keybinds 0 Fullscreen 2 Font 12/Smallcaps Map View 60x54 Tactical HUD 0 Map Filters NONE Filters NONE Steam 1 RUN: 1766a68b-0572-4da6-ad47-6ec71053bd80